[Event "Catalan University-ch 2024"]
[Site "Barcelona"]
[Date "2024.02.24"]
[Round "5.6"]
[White "Ros Alonso, Joana"]
[Black "Gonzalez Alonso, Marti"]
[Result "1/2-1/2"]
[ECO "C43"]
[WhiteElo "2033"]
[BlackElo "2012"]
[Annotator "NA RC"]
[PlyCount "43"]
[EventDate "2024.02.24"]
[EventCountry "ESP"]
[SourceTitle "playchess.com"]
[Source "ChessBase"]
[SourceQuality "1"]
[TimeControl "600+2"]

1. e4 {[%emt 0:00:02]} e5 {[%emt 0:00:07]} 2. Nf3 {[%emt 0:00:09]} Nf6 {[%emt 0:00:01]} 3. d4 {[%emt 0:00:01]} Nxe4 {[%emt 0:00:03]} 4. Bd3 {[%emt 0:00:01]} d5 {[%emt 0:00:03]} 5. Nxe5 {[%emt 0:00:06]} Nd7 {[%emt 0:00:05]} 6. O-O {[%emt 0:00:39]} Nxe5 {[%emt 0:00:27]} 7. dxe5 {[%emt 0:00:02]} Bc5 {[%emt 0:00:33]} 8. Bxe4 {[%emt 0:00:44]} dxe4 {[%emt 0:00:04]} 9. Qxd8+ {[%emt 0:00:02]} Kxd8 {[%emt 0:00:01]} 10. Nc3 {[%emt 0:00:33]} Bf5 {[%emt 0:00:12]} 11. Re1 {[%emt 0:00:51]} Re8 {[%emt 0:03:39]} 12. Nxe4 {[%emt 0:00:38]} Rxe5 {[%emt 0:00:25]} 13. Rd1+ {[%emt 0:00:02]} Ke8 {[%emt 0:00:38]} 14. Nxc5 {[%emt 0:00:03]} Rxc5 {[%emt 0:00:03]} 15. c3 {[%emt 0:00:01]} Rd8 {[%emt 0:00:33]} 16. Be3 {[%emt 0:00:55]} Ra5 {[%emt 0:00:24]} 17. Rxd8+ {[%emt 0:00:24]} Kxd8 {[%emt 0:00:02]} 18. Rd1+ {[%emt 0:00:01]} Ke8 {[%emt 0:00:14]} 19. a3 {[%emt 0:00:28]} Be6 {[%emt 0:00:06]} 20. Bd4 {[%emt 0:00:30]} g6 {[%emt 0:00:11]} 21. Bf6 {[%emt 0:01:39]} Rd5 {[%emt 0:00:04]} 22. Rxd5 {[%emt 0:00:02]} 1/2-1/2

[Event "Catalan University-ch 2024"]
[Site "Barcelona"]
[Date "2024.02.24"]
[Round "5.7"]
[White "Dominguez Laguna, Eduard"]
[Black "Martinez Lopez, Carlos"]
[Result "0-1"]
[ECO "E24"]
[WhiteElo "1943"]
[BlackElo "2006"]
[Annotator "NA RC"]
[PlyCount "64"]
[EventDate "2024.02.24"]
[EventCountry "ESP"]
[SourceTitle "playchess.com"]
[Source "ChessBase"]
[SourceQuality "1"]
[TimeControl "600+2"]

1. d4 {[%emt 0:00:02]} Nf6 {[%emt 0:00:01]} 2. c4 {[%emt 0:00:01]} e6 {[%emt 0:00:01]} 3. Nc3 {[%emt 0:00:01]} Bb4 {[%emt 0:00:00]} 4. a3 {[%emt 0:00:00]} Bxc3+ {[%emt 0:00:01]} 5. bxc3 b6 {[%emt 0:10:09]} 6. f3 {[%emt 0:00:03]} Bb7 {[%emt 0:00:00]} 7. e4 {[%emt 0:00:01]} d6 {[%emt 0:00:00]} 8. Bd3 {[%emt 0:00:08]} Nc6 {[%emt 0:00:00]} 9. Ne2 {[%emt 0:00:26]} O-O {[%emt 0:00:00]} 10. O-O {[%emt 0:00:33]} Nd7 {[%emt 0:00:00]} 11. Ng3 {[%emt 0:00:28]} Na5 {[%emt 0:00:00]} 12. f4 {[%emt 0:00:13]} Ba6 {[%emt 0:00:00]} 13. Qe2 {[%emt 0:00:37]} c5 {[%emt 0:00:00]} 14. e5 {[%emt 0:00:47]} cxd4 {[%emt 0:00:00]} 15. Qh5 {[%emt 0:01:54]} f5 {[%emt 0:00:00]} 16. exf6 {[%emt 0:01:17]} Nxf6 {[%emt 0:00:00]} 17. Qe2 {[%emt 0:00:11]} dxc3 {[%emt 0:00:00]} 18. Qxe6+ {[%emt 0:00:16]} Kh8 {[%emt 0:00:00]} 19. Nf5 {[%emt 0:00:40]} Qd7 {[%emt 0:00:00]} 20. Qxd7 {[%emt 0:00:18]} Nxd7 {[%emt 0:00:00]} 21. Nxd6 {[%emt 0:00:01]} Nc5 {[%emt 0:00:00]} 22. Bc2 {[%emt 0:00:55]} Rad8 {[%emt 0:00:00]} 23. Nf5 {[%emt 0:00:27]} Bxc4 {[%emt 0:00:00]} 24. Re1 {[%emt 0:00:04]} Nd3 {[%emt 0:00:00]} 25. Bxd3 {[%emt 0:00:08]} Bxd3 {[%emt 0:00:00]} 26. Ne7 {[%emt 0:00:31]} Nb3 {[%emt 0:00:00]} 27. Ra2 {[%emt 0:00:02]} Nxc1 {[%emt 0:00:00]} 28. Rxc1 {[%emt 0:00:01]} Rxf4 {[%emt 0:00:00]} 29. Nc6 {[%emt 0:00:13]} Rdf8 {[%emt 0:00:00]} 30. h3 {[%emt 0:00:10]} Rf1+ {[%emt 0:00:00]} 31. Rxf1 {[%emt 0:00:02]} Rxf1+ {[%emt 0:00:00]} 32. Kh2 {[%emt 0:00:01]} c2 {[%emt 0:00:00]} 0-1

[Event "Catalan University-ch 2024"]
[Site "Barcelona"]
[Date "2024.02.24"]
[Round "5.8"]
[White "Marzo Pie, Xavier"]
[Black "Mangues Rubia, Alex"]
[Result "1-0"]
[ECO "D70"]
[WhiteElo "2043"]
[BlackElo "1930"]
[Annotator "NA RC"]
[PlyCount "91"]
[EventDate "2024.02.24"]
[EventCountry "ESP"]
[SourceTitle "playchess.com"]
[Source "ChessBase"]
[SourceQuality "1"]
[TimeControl "600+2"]

1. d4 {[%emt 0:00:01]} d5 {[%emt 0:00:00]} 2. c4 {[%emt 0:00:01]} c6 {[%emt 0:00:01]} 3. Nf3 {[%emt 0:00:02]} Nf6 {[%emt 0:00:01]} 4. e3 {[%emt 0:00:01]} g6 {[%emt 0:00:04]} 5. Bd3 {[%emt 0:00:07]} Bg7 {[%emt 0:00:02]} 6. b3 {[%emt 0:00:03]} O-O {[%emt 0:00:04]} 7. Bb2 {[%emt 0:00:01]} Bg4 {[%emt 0:00:15]} 8. Nbd2 {[%emt 0:00:03]} Nbd7 {[%emt 0:00:33]} 9. O-O {[%emt 0:00:09]} Re8 {[%emt 0:00:17]} 10. Qc2 {[%emt 0:00:07]} Rc8 {[%emt 0:00:19]} 11. h3 {[%emt 0:00:05]} Bxf3 {[%emt 0:00:05]} 12. Nxf3 {[%emt 0:00:02]} c5 {[%emt 0:00:16]} 13. Qe2 {[%emt 0:00:18]} e6 {[%emt 0:00:54]} 14. Rac1 {[%emt 0:00:08]} a6 {[%emt 0:01:04]} 15. Rfd1 {[%emt 0:00:04]} Qb6 {[%emt 0:01:30]} 16. Bb1 {[%emt 0:00:20]} Red8 {[%emt 0:01:10]} 17. dxc5 {[%emt 0:00:14]} Nxc5 {[%emt 0:00:29]} 18. Bd4 {[%emt 0:00:23]} Qa5 {[%emt 0:00:15]} 19. Qb2 {[%emt 0:00:10]} Ncd7 {[%emt 0:01:22]} 20. cxd5 {[%emt 0:00:14]} Rxc1 {[%emt 0:00:12]} 21. Rxc1 {[%emt 0:00:04]} Qxd5 {[%emt 0:00:04]} 22. Bd3 {[%emt 0:00:23]} Nh5 {[%emt 0:00:15]} 23. Bxg7 {[%emt 0:00:26]} Nxg7 {[%emt 0:00:01]} 24. Bc4 {[%emt 0:00:02]} Qd6 {[%emt 0:00:10]} 25. Ng5 {[%emt 0:00:18]} Qe5 {[%emt 0:00:31]} 26. Qxe5 {[%emt 0:00:10]} Nxe5 {[%emt 0:00:01]} 27. Ne4 {[%emt 0:00:08]} Nf5 {[%emt 0:00:29]} 28. Be2 {[%emt 0:00:15]} Kf8 {[%emt 0:00:03]} 29. g4 {[%emt 0:00:08]} Nd6 {[%emt 0:00:04]} 30. Nf6 {[%emt 0:00:12]} h6 {[%emt 0:00:04]} 31. f4 {[%emt 0:00:08]} Nd7 {[%emt 0:00:02]} 32. Nxd7+ {[%emt 0:00:14]} Rxd7 33. Bf3 {[%emt 0:00:02]} Ke7 {[%emt 0:00:05]} 34. Kf2 {[%emt 0:00:02]} Kd8 {[%emt 0:00:10]} 35. h4 {[%emt 0:00:12]} Rc7 {[%emt 0:00:14]} 36. Rxc7 {[%emt 0:00:06]} Kxc7 {[%emt 0:00:00]} 37. Ke2 {[%emt 0:00:13]} b6 {[%emt 0:00:01]} 38. Kd3 {[%emt 0:00:03]} Nb5 {[%emt 0:00:05]} 39. a4 {[%emt 0:00:05]} Na7 {[%emt 0:00:04]} 40. Kd4 {[%emt 0:00:06]} Kd6 {[%emt 0:00:01]} 41. Bb7 {[%emt 0:00:08]} a5 {[%emt 0:00:02]} 42. Kc4 {[%emt 0:00:04]} Kc7 {[%emt 0:00:03]} 43. Be4 {[%emt 0:00:08]} Kd6 {[%emt 0:00:01]} 44. Bf3 {[%emt 0:00:09]} e5 {[%emt 0:00:03]} 45. g5 {[%emt 0:00:09]} exf4 {[%emt 0:00:03]} 46. gxh6 {[%emt 0:00:05]} 1-0

[Event "Catalan University-ch 2024"]
[Site "Barcelona"]
[Date "2024.02.24"]
[Round "5.9"]
[White "Masalias Mira, Marc"]
[Black "Ruiz Lupon, Neri"]
[Result "0-1"]
[ECO "C11"]
[WhiteElo "1826"]
[BlackElo "1968"]
[Annotator "NA RC"]
[PlyCount "85"]
[EventDate "2024.02.24"]
[EventCountry "ESP"]
[SourceTitle "playchess.com"]
[Source "ChessBase"]
[SourceQuality "1"]
[TimeControl "600+2"]

1. e4 {[%emt 0:00:01]} e6 {[%emt 0:00:03]} 2. d4 {[%emt 0:00:01]} d5 {[%emt 0:00:01]} 3. Nc3 {[%emt 0:00:03]} Nf6 {[%emt 0:00:02]} 4. e5 {[%emt 0:00:01]} Nfd7 {[%emt 0:00:01]} 5. Nce2 {[%emt 0:00:01]} c5 {[%emt 0:00:01]} 6. c3 {[%emt 0:00:01]} Nc6 {[%emt 0:00:01]} 7. Nf3 {[%emt 0:00:07]} Be7 {[%emt 0:00:11]} 8. g3 {[%emt 0:00:03]} O-O {[%emt 0:00:11]} 9. Bh3 {[%emt 0:00:07]} Re8 {[%emt 0:01:26]} 10. O-O {[%emt 0:00:07]} Nf8 {[%emt 0:00:03]} 11. Re1 {[%emt 0:00:43]} cxd4 {[%emt 0:00:03]} 12. cxd4 {[%emt 0:00:06]} f6 {[%emt 0:00:02]} 13. Nf4 {[%emt 0:00:50]} f5 {[%emt 0:00:16]} 14. Ne2 {[%emt 0:00:34]} b6 {[%emt 0:00:22]} 15. a3 {[%emt 0:00:27]} Na5 {[%emt 0:00:20]} 16. b3 {[%emt 0:00:14]} Ba6 {[%emt 0:00:10]} 17. Nc3 {[%emt 0:00:29]} Rc8 {[%emt 0:00:04]} 18. Bb2 {[%emt 0:00:05]} Qd7 {[%emt 0:00:36]} 19. Rc1 {[%emt 0:00:20]} Rc7 {[%emt 0:00:13]} 20. Nd2 {[%emt 0:00:57]} Rec8 {[%emt 0:00:21]} 21. b4 {[%emt 0:00:08]} Nc4 {[%emt 0:00:01]} 22. Nxc4 {[%emt 0:00:02]} Bxc4 {[%emt 0:00:01]} 23. Qd2 {[%emt 0:01:16]} Qe8 {[%emt 0:00:13]} 24. f4 {[%emt 0:01:00]} Qh5 {[%emt 0:00:04]} 25. Bg2 {[%emt 0:00:15]} g5 {[%emt 0:00:19]} 26. Qd1 {[%emt 0:00:06]} Qxd1 {[%emt 0:00:34]} 27. Rexd1 {[%emt 0:00:12]} gxf4 {[%emt 0:00:01]} 28. gxf4 {[%emt 0:00:01]} Ng6 {[%emt 0:00:01]} 29. Kf2 {[%emt 0:02:02]} Nxf4 {[%emt 0:00:03]} 30. Bf1 {[%emt 0:00:06]} Bg5 {[%emt 0:00:11]} 31. Ra1 {[%emt 0:00:28]} Bxf1 {[%emt 0:00:07]} 32. Rxf1 {[%emt 0:00:03]} Rxc3 {[%emt 0:00:01]} 33. Bxc3 {[%emt 0:00:04]} Rxc3 {[%emt 0:00:01]} 34. Rg1 {[%emt 0:00:04]} Nh3+ {[%emt 0:00:01]} 35. Ke2 {[%emt 0:00:02]} Nxg1+ {[%emt 0:00:21]} 36. Rxg1 {[%emt 0:00:01]} h6 {[%emt 0:00:26]} 37. h4 {[%emt 0:00:01]} Re3+ {[%emt 0:00:18]} 38. Kf2 {[%emt 0:00:03]} Re4 {[%emt 0:00:02]} 39. hxg5 {[%emt 0:00:01]} h5 {[%emt 0:00:00]} 40. Rh1 {[%emt 0:00:05]} h4 {[%emt 0:00:01]} 41. Rd1 {[%emt 0:00:04]} Kg7 {[%emt 0:00:01]} 42. Kf3 {[%emt 0:00:02]} Kg6 {[%emt 0:00:04]} 43. a4 {[%emt 0:00:05]} 0-1

[Event "Catalan University-ch 2024"]
[Site "Barcelona"]
[Date "2024.02.24"]
[Round "6.1"]
[White "Adan Bermudez, Sergio"]
[Black "Castillo Dalmau, Albert"]
[Result "1/2-1/2"]
[ECO "A36"]
[WhiteElo "2299"]
[BlackElo "2313"]
[Annotator "TA"]
[PlyCount "85"]
[EventDate "2024.02.24"]
[EventCountry "ESP"]
[SourceTitle "playchess.com"]
[Source "ChessBase"]
[SourceQuality "1"]
[TimeControl "600+2"]

{[%evp 13,85,15,36,9,37,11,15,15,15,34,29,12,25,24,21,-18,0,-42,-43,-29,-27,-25,-23,-12,0,-31,13,-17,0,0,0,-17,-28,-49,-35,-54,-45,-59,-71,-107,-70,-59,0,0,0,-14,0,0,57,62,62,42,43,45,62,0,0,0,0,0,0,-97,-106,-110,-110,-103,0,-53,0,-80,0,-75,0,-495]} 1. c4 {[%emt 0:00:02]} c5 {[%emt 0:00:01]} 2. Nc3 {[%emt 0:00:02]} g6 {[%emt 0:00:01]} 3. g3 {[%emt 0:00:01]} Bg7 {[%emt 0:00:02]} 4. Bg2 {[%emt 0:00:01]} Nc6 {[%emt 0:00:01]} 5. a3 {[%emt 0:00:02]} d6 {[%emt 0:00:08]} 6. Rb1 {[%emt 0:00:01]} a5 {[%emt 0:00:02]} 7. d3 {[%emt 0:00:15]} e5 {[%emt 0:00:01]} 8. Nd5 {[%emt 0:00:27]} Be6 {[%emt 0:01:06]} 9. Qb3 {[%emt 0:00:35]} Rb8 {[%emt 0:00:45][%cal Ob7b5]} 10. Qb6 {[%emt 0:00:09]} Qxb6 {[%emt 0:00:05]} 11. Nxb6 {[%emt 0:00:01]} Nge7 {[%emt 0:00:03]} 12. Nf3 {[%emt 0:01:08]} h6 {[%emt 0:00:13] Wards off Ng5} 13. Nd2 {[%emt 0:00:03]} Kd8 {[%emt 0:02:24]} 14. Nd5 {[%emt 0:00:38]} Kd7 {[%emt 0:00:28]} 15. Ne4 {[%emt 0:00:51]} b5 {[%emt 0:01:31]} 16. Nef6+ {[%emt 0:00:25]} Bxf6 {[%emt 0:00:38]} 17. Nxf6+ {[%emt 0:00:02]} Kc7 {[%emt 0:00:01]} 18. Nd5+ {[%emt 0:01:24]} Kd7 {[%emt 0:00:24]} 19. Bd2 {[%emt 0:00:47][%cal Oc4b5]} h5 {[%emt 0:00:25]} 20. e3 {[%emt 0:00:55]} bxc4 {[%emt 0:00:41]} 21. dxc4 {[%emt 0:00:02]} a4 {[%emt 0:00:10]} 22. Bc3 {[%emt 0:00:04]} Bxd5 {[%emt 0:00:16]} 23. cxd5 {[%emt 0:00:06]} Na7 {[%emt 0:00:06]} 24. O-O {[%emt 0:00:46]} Nb5 {[%emt 0:00:01]} 25. Bd2 {[%emt 0:00:03]} f5 {[%emt 0:00:31]} 26. Rfc1 {[%emt 0:00:21]} Nc7 {[%emt 0:00:05][%cal Ob8b7]} 27. Rc4 {[%emt 0:00:02]} Ra8 {[%emt 0:00:09]} (27... Rb3 $15 28. e4 Rhb8 29. Rxa4 Rxb2) 28. e4 $11 {[%emt 0:00:02]} fxe4 {[%emt 0:00:08]} 29. Bxe4 {[%emt 0:00:02]} Rhb8 {[%emt 0:00:05]} 30. Bg5 {[%emt 0:00:05]} Ra7 {[%emt 0:00:15]} (30... Nf5 $11) 31. Bxe7 $14 {[%emt 0:00:26]} Kxe7 {[%emt 0:00:01]} 32. Bxg6 {[%emt 0:00:09]} Nxd5 {[%emt 0:00:03]} 33. Bxh5 {[%emt 0:00:03]} Nf6 {[%emt 0:00:10]} 34. Bd1 {[%emt 0:00:01]} (34. Be2 $14) 34... Rab7 $11 {[%emt 0:00:03]} 35. Rxa4 {[%emt 0:00:05]} Rxb2 {[%emt 0:00:01]} 36. Rxb2 {[%emt 0:00:01]} Rxb2 {[%emt 0:00:01][%mdl 4096] Endgame. KRB-KRN} 37. Bf3 {[%emt 0:00:12]} (37. Kf1 $1 $11) 37... d5 $17 {[%emt 0:00:01][%mdl 1024] [#] Strongly threatening ...e4. Black has strong compensation.} 38. Ra7+ {[%emt 0:00:02]} Ke6 {[%emt 0:00:01]} 39. Ra6+ {[%emt 0:00:01]} Ke7 {[%emt 0:00:03]} (39... Kf5 $17 {And now ...e4 would win.} 40. h3 e4 41. g4+ Ke5) 40. Ra7+ $1 $15 {[%emt 0:00:01]} Ke6 {[%emt 0:00:00] ...e4 is the strong threat.} 41. Ra6+ {[%emt 0:00:02]} Ke7 {[%emt 0:00:08] [#] Hoping for ...e4.} 42. Ra7+ $1 {[%emt 0:00:02]} Ke6 {[%emt 0:00:08]} (42... Ke8 $17 {Threatens to win with ...e4.} 43. Ra6 Kf7) 43. g4 $2 {[%mdl 40960] Weighted Error Value: White=0.15 (very precise) /Black=0.18 (very precise) .  Loses game:     	White=1     	---        Mistake:       	White=2     	Black=4      Inaccurate:     	White=6     	Black=3      OK:         	White=5     	Black=13     Best:        	White=6     	Black=4      Strong:       	White=2     	---       . An unexpected result.} (43. Ra6+ $11 Kf5 44. h3) 1/2-1/2

[Event "Catalan University-ch 2024"]
[Site "Barcelona"]
[Date "2024.02.24"]
[Round "6.2"]
[White "Alfonso Pellisa, Aaron"]
[Black "Travesset Sagre, Jan"]
[Result "1-0"]
[ECO "B15"]
[WhiteElo "2090"]
[BlackElo "2193"]
[Annotator "RC"]
[PlyCount "47"]
[EventDate "2024.02.24"]
[EventCountry "ESP"]
[SourceTitle "playchess.com"]
[Source "ChessBase"]
[SourceQuality "1"]
[TimeControl "600+2"]

1. e4 {[%emt 0:00:01]} c6 {[%emt 0:00:05]} 2. d4 {[%emt 0:00:01]} d5 {[%emt 0:00:00]} 3. Nc3 {[%emt 0:10:06]} a6 4. a3 {[%emt 0:00:00]} dxe4 {[%emt 0:00:06]} 5. Nxe4 {[%emt 0:00:00]} Bf5 {[%emt 0:00:01]} 6. Ng3 {[%emt 0:00:00]} Bg6 {[%emt 0:00:01]} 7. N1e2 {[%emt 0:00:00]} e6 {[%emt 0:00:10]} 8. Nf4 {[%emt 0:00:00]} Bd6 {[%emt 0:00:02]} 9. h4 {[%emt 0:00:00]} Qc7 {[%emt 0:01:00]} 10. h5 {[%emt 0:00:00]} Bxc2 {[%emt 0:00:14]} 11. Qg4 {[%emt 0:00:00]} Ne7 {[%emt 0:01:08]} 12. Bc4 {[%emt 0:00:00]} Bf5 {[%emt 0:00:59]} 13. Nxf5 {[%emt 0:00:00]} Qa5+ {[%emt 0:00:09]} 14. Bd2 {[%emt 0:00:00]} Qxf5 {[%emt 0:00:01]} 15. Qf3 {[%emt 0:00:00]} Bxf4 {[%emt 0:01:58]} 16. Bxf4 {[%emt 0:00:00]} Nd5 {[%emt 0:00:11]} 17. Bxd5 {[%emt 0:00:00]} Qxd5 {[%emt 0:00:29]} 18. Qg3 {[%emt 0:00:00]} O-O {[%emt 0:00:39]} 19. Bh6 {[%emt 0:00:00]} Qxd4 {[%emt 0:00:16]} 20. Rh4 {[%emt 0:00:00]} Qxb2 {[%emt 0:02:51]} 21. Bxg7 {[%emt 0:00:00]} Qxg7 {[%emt 0:00:02]} 22. Rg4 {[%emt 0:00:00]} Qxg4 {[%emt 0:00:20]} 23. Qxg4+ {[%emt 0:00:00]} Kh8 {[%emt 0:00:01]} 24. h6 {[%emt 0:00:00]} 1-0

[Event "Catalan University-ch 2024"]
[Site "Barcelona"]
[Date "2024.02.24"]
[Round "6.3"]
[White "Sole Pijuan, Ferran"]
[Black "Marzo Pie, Xavier"]
[Result "0-1"]
[ECO "A42"]
[WhiteElo "2136"]
[BlackElo "2043"]
[Annotator "NA"]
[PlyCount "52"]
[EventDate "2024.02.24"]
[EventCountry "ESP"]
[SourceTitle "playchess.com"]
[Source "ChessBase"]
[SourceQuality "1"]
[TimeControl "600+2"]

1. d4 {[%emt 0:00:03]} g6 {[%emt 0:00:00]} 2. c4 {[%emt 0:00:09]} Bg7 {[%emt 0:00:02]} 3. Nc3 {[%emt 0:00:06]} d6 {[%emt 0:00:01]} 4. e4 {[%emt 0:00:01]} Nc6 {[%emt 0:00:11]} 5. Be3 {[%emt 0:00:08]} e5 {[%emt 0:00:04]} 6. d5 {[%emt 0:00:00]} Nce7 {[%emt 0:00:01]} 7. c5 {[%emt 0:00:15]} f5 {[%emt 0:00:23]} 8. cxd6 {[%emt 0:00:16]} cxd6 {[%emt 0:00:04]} 9. Qa4+ {[%emt 0:00:14]} Bd7 {[%emt 0:00:10]} 10. Qb4 {[%emt 0:00:01]} Nf6 {[%emt 0:01:03]} 11. Qxd6 {[%emt 0:00:34]} Nxe4 {[%emt 0:00:31]} 12. Nxe4 {[%emt 0:00:06]} fxe4 {[%emt 0:00:01]} 13. Qb4 {[%emt 0:01:17]} Nxd5 {[%emt 0:00:26]} 14. Qxe4 {[%emt 0:00:22]} Nxe3 {[%emt 0:00:12]} 15. Qxe3 {[%emt 0:00:20]} Bc6 {[%emt 0:00:09]} 16. Nf3 {[%emt 0:00:41]} Bxf3 {[%emt 0:00:54]} 17. Qxf3 {[%emt 0:00:06]} Qa5+ {[%emt 0:00:01]} 18. Qc3 {[%emt 0:00:02]} Qxc3+ {[%emt 0:00:06]} 19. bxc3 {[%emt 0:00:00]} e4 {[%emt 0:00:31]} 20. Rc1 {[%emt 0:00:08]} O-O-O {[%emt 0:00:10]} 21. Bc4 {[%emt 0:00:11]} Rhe8 {[%emt 0:00:09]} 22. Ke2 {[%emt 0:00:01]} e3 {[%emt 0:00:10]} 23. fxe3 {[%emt 0:01:02]} Bh6 {[%emt 0:00:01]} 24. Rcd1 {[%emt 0:00:02]} Rxe3+ {[%emt 0:00:03]} 25. Kf2 {[%emt 0:00:15]} Rf8+ {[%emt 0:05:29]} 26. Kg1 Re4 {[%emt 0:00:00]} 0-1

[Event "Catalan University-ch 2024"]
[Site "Barcelona"]
[Date "2024.02.24"]
[Round "6.4"]
[White "Martinez Lopez, Carlos"]
[Black "De Lomas Busquets, Alba"]
[Result "1-0"]
[ECO "B53"]
[WhiteElo "2006"]
[BlackElo "1883"]
[Annotator "NA RC"]
[PlyCount "53"]
[EventDate "2024.02.24"]
[EventCountry "ESP"]
[SourceTitle "playchess.com"]
[Source "ChessBase"]
[SourceQuality "1"]
[TimeControl "600+2"]

1. e4 {[%emt 0:00:02]} c5 {[%emt 0:00:00]} 2. Nf3 {[%emt 0:00:01]} d6 {[%emt 0:00:02]} 3. d4 {[%emt 0:00:04]} cxd4 {[%emt 0:00:01]} 4. Qxd4 {[%emt 0:00:02]} Nf6 {[%emt 0:00:02]} 5. Be2 {[%emt 0:00:02]} Nc6 {[%emt 0:00:03]} 6. Qe3 {[%emt 0:00:01]} Ng4 {[%emt 0:00:22]} 7. Qd2 {[%emt 0:00:22]} g6 {[%emt 0:00:37]} 8. h3 {[%emt 0:00:24]} Nf6 {[%emt 0:00:05]} 9. Qe3 {[%emt 0:00:13]} Bg7 {[%emt 0:00:05]} 10. O-O {[%emt 0:00:03]} O-O {[%emt 0:00:02]} 11. Rd1 {[%emt 0:00:04]} Qc7 {[%emt 0:00:05]} 12. c4 {[%emt 0:00:05]} b6 {[%emt 0:00:04]} 13. Nc3 {[%emt 0:00:03]} a6 {[%emt 0:00:01]} 14. Rb1 {[%emt 0:00:03]} Bb7 {[%emt 0:00:04]} 15. b3 {[%emt 0:00:01]} Rac8 {[%emt 0:00:20]} 16. Bb2 {[%emt 0:00:01]} Rfd8 {[%emt 0:00:15]} 17. Rbc1 {[%emt 0:00:07]} h6 {[%emt 0:00:27]} 18. Rd2 {[%emt 0:00:48]} Ba8 {[%emt 0:00:03]} 19. Nd5 {[%emt 0:00:11]} Nxd5 {[%emt 0:00:16]} 20. cxd5 {[%emt 0:00:03]} Qa7 {[%emt 0:00:24]} 21. dxc6 {[%emt 0:00:06]} e5 {[%emt 0:00:05]} 22. Ba3 {[%emt 0:00:40]} Bf8 {[%emt 0:00:07]} 23. Rdc2 {[%emt 0:00:29]} Rc7 {[%emt 0:00:06]} 24. Bc4 {[%emt 0:00:20]} Rdc8 {[%emt 0:00:19]} 25. Bd5 {[%emt 0:00:03]} Kg7 {[%emt 0:00:06]} 26. Bb2 {[%emt 0:00:14]} Qb8 {[%emt 0:00:06]} 27. Nxe5 {[%emt 0:00:26]} 1-0

[Event "Catalan University-ch 2024"]
[Site "Barcelona"]
[Date "2024.02.24"]
[Round "6.5"]
[White "Ruiz Lupon, Neri"]
[Black "Gomez Navais, Marcal"]
[Result "0-1"]
[ECO "B25"]
[WhiteElo "1968"]
[BlackElo "2081"]
[Annotator "NA RC"]
[PlyCount "146"]
[EventDate "2024.02.24"]
[EventCountry "ESP"]
[SourceTitle "playchess.com"]
[Source "ChessBase"]
[SourceQuality "1"]
[TimeControl "600+2"]

1. e4 {[%emt 0:00:03]} c5 {[%emt 0:00:01]} 2. Nc3 {[%emt 0:00:01]} Nc6 {[%emt 0:00:01]} 3. g3 {[%emt 0:00:02]} g6 {[%emt 0:00:01]} 4. Bg2 {[%emt 0:00:01]} Bg7 {[%emt 0:00:01]} 5. d3 {[%emt 0:00:02]} d6 {[%emt 0:00:01]} 6. Nge2 {[%emt 0:00:02]} Rb8 {[%emt 0:00:11]} 7. O-O {[%emt 0:00:03]} b5 {[%emt 0:00:05]} 8. f4 {[%emt 0:00:08]} e6 {[%emt 0:00:29]} 9. g4 {[%emt 0:00:24]} b4 {[%emt 0:00:07]} 10. Nb1 {[%emt 0:00:03]} Nge7 {[%emt 0:09:25]} 11. Ng3 {[%emt 0:00:05]} O-O {[%emt 0:00:00]} 12. Nd2 {[%emt 0:00:02]} d5 {[%emt 0:00:00]} 13. e5 {[%emt 0:00:13]} f6 {[%emt 0:00:00]} 14. exf6 {[%emt 0:00:09]} Bxf6 {[%emt 0:00:00]} 15. Nf3 {[%emt 0:00:32]} e5 {[%emt 0:00:00]} 16. fxe5 {[%emt 0:00:47]} Nxe5 {[%emt 0:00:00]} 17. Nxe5 {[%emt 0:00:03]} Bxe5 {[%emt 0:00:00]} 18. Bg5 {[%emt 0:00:04]} Bb7 {[%emt 0:00:00]} 19. Qe2 {[%emt 0:00:04]} Qd6 {[%emt 0:00:00]} 20. Bxe7 {[%emt 0:00:17]} Qxe7 {[%emt 0:00:00]} 21. Rfe1 {[%emt 0:00:19]} Bd4+ {[%emt 0:00:00]} 22. Kh1 {[%emt 0:00:04]} Qxe2 {[%emt 0:00:00]} 23. Rxe2 {[%emt 0:00:01]} Bxb2 {[%emt 0:00:00]} 24. Rae1 {[%emt 0:00:01]} Bf6 {[%emt 0:00:00]} 25. Re6 {[%emt 0:00:11]} Rbd8 {[%emt 0:00:00]} 26. Rf1 {[%emt 0:00:13]} Kg7 {[%emt 0:00:00]} 27. Ne2 {[%emt 0:00:36]} Bc8 {[%emt 0:00:00]} 28. Rc6 {[%emt 0:00:06]} Bxg4 {[%emt 0:00:00]} 29. Nf4 {[%emt 0:00:07]} Be5 {[%emt 0:00:00]} 30. Ne6+ {[%emt 0:01:10]} Bxe6 {[%emt 0:00:00]} 31. Rxe6 {[%emt 0:00:02]} Rxf1+ {[%emt 0:00:00]} 32. Bxf1 {[%emt 0:00:01]} Bd6 {[%emt 0:00:00]} 33. Bg2 {[%emt 0:00:04]} d4 {[%emt 0:00:00]} 34. Bc6 {[%emt 0:00:20]} Kf8 {[%emt 0:00:00]} 35. Bb5 {[%emt 0:04:52]} Be7 {[%emt 0:00:00]} 36. Ra6 {[%emt 0:00:00]} Rb8 {[%emt 0:00:00]} 37. Bc4 {[%emt 0:00:00]} Rb7 {[%emt 0:00:00]} 38. Rc6 {[%emt 0:00:00]} Rb6 {[%emt 0:00:00]} 39. Rc7 {[%emt 0:00:00]} a6 {[%emt 0:00:00]} 40. Kg2 {[%emt 0:00:00]} Ke8 {[%emt 0:00:00]} 41. Ra7 {[%emt 0:00:00]} h6 {[%emt 0:00:03]} 42. Bxa6 {[%emt 0:00:00]} Re6 {[%emt 0:00:04]} 43. Kf3 {[%emt 0:00:00]} Bd6 {[%emt 0:00:09]} 44. Rh7 {[%emt 0:00:00]} h5 {[%emt 0:00:03]} 45. Bc4 {[%emt 0:00:00]} Re3+ {[%emt 0:00:02]} 46. Kf2 {[%emt 0:00:00]} Bxh2 {[%emt 0:00:11]} 47. Bb3 {[%emt 0:00:00]} Bg3+ {[%emt 0:00:04]} 48. Kg2 {[%emt 0:00:00]} h4 {[%emt 0:00:00]} 49. Rh6 {[%emt 0:00:00]} g5 {[%emt 0:00:04]} 50. Rh5 {[%emt 0:00:00]} g4 {[%emt 0:00:04]} 51. Rh8+ {[%emt 0:00:00]} Ke7 {[%emt 0:00:03]} 52. Rh7+ {[%emt 0:00:00]} Kf6 {[%emt 0:00:01]} 53. Rf7+ {[%emt 0:00:00]} Kg6 {[%emt 0:00:01]} 54. Rf1 {[%emt 0:00:00]} h3+ {[%emt 0:00:01]} 55. Kh1 {[%emt 0:00:00]} Be5 {[%emt 0:00:09]} 56. Be6 {[%emt 0:00:00]} Rg3 {[%emt 0:00:21]} 57. Rg1 {[%emt 0:00:00]} Rxg1+ {[%emt 0:00:03]} 58. Kxg1 {[%emt 0:00:00]} Kg5 {[%emt 0:00:02]} 59. Bd5 {[%emt 0:00:00]} Bg3 {[%emt 0:00:01]} 60. Be6 {[%emt 0:00:00]} Kf4 {[%emt 0:00:02]} 61. Kf1 {[%emt 0:00:00]} Bh4 {[%emt 0:00:01]} 62. Kg1 {[%emt 0:00:00]} Kg3 {[%emt 0:00:01]} 63. Kh1 {[%emt 0:00:00]} Bg5 {[%emt 0:00:01]} 64. Kg1 {[%emt 0:00:00]} Be3+ {[%emt 0:00:01]} 65. Kh1 {[%emt 0:00:00]} Kh4 {[%emt 0:00:02]} 66. Bd5 {[%emt 0:00:38]} g3 {[%emt 0:00:01]} 67. Bf3 {[%emt 0:00:06]} Kg5 {[%emt 0:00:04]} 68. Be4 {[%emt 0:00:03]} Kf4 {[%emt 0:00:02]} 69. Bd5 {[%emt 0:00:01]} Ke5 {[%emt 0:00:07]} 70. Be4 {[%emt 0:00:02]} Kd6 {[%emt 0:00:01]} 71. Bf3 {[%emt 0:00:02]} Kc7 {[%emt 0:00:01]} 72. Bd5 {[%emt 0:00:05]} Kb6 {[%emt 0:00:01]} 73. Be4 {[%emt 0:00:05]} Ka5 {[%emt 0:00:01]} 0-1